bitfinex-derivatives/quotes_SOLF0:USTF0_20250309
["timestamp","ask_amount","ask_price","bid_price","bid_amount"]
[1741517966461,7.40569307,136.03,136.0,0.05346387]
[1741517968264,0.05289307,136.03,136.0,0.05346387]
[1741517968561,7.3533,136.02,136.0,0.05346387]
[1741517969365,7.3537,136.01,136.0,0.05346387]
[1741517969963,7.3536,136.02,136.0,0.05346387]
[1741517970465,5.86429307,136.03,136.0,7.40746387]
[1741517970869,5.86429307,136.03,136.0,0.05346387]
[1741517972167,7.3534,136.02,136.0,0.05346387]
[1741517972865,5.86429307,136.03,136.0,7.40756387]
[1741517973468,5.86429307,136.03,136.0,0.05346387]
[1741517974356,5.86429307,136.03,136.0,7.40756387]
[1741517974762,0.05289307,136.03,136.0,0.05346387]
[1741517975164,7.40589307,136.03,136.0,0.05346387]
[1741517975468,0.05289307,136.03,136.0,0.05346387]
[1741517975766,7.40579307,136.03,136.0,0.05346387]
[1741517975967,0.05289307,136.03,136.0,0.05346387]
[1741517976869,7.40569307,136.03,136.0,0.05346387]
[1741517977266,1.9108,136.02,136.0,0.05346387]
[1741517977865,9.264,136.02,136.0,0.05346387]
[1741517978059,1.9108,136.02,136.0,7.40756387]
[1741517981474,7.3537,136.01,136.0,0.05346387]
[1741517981662,32.5555,136.02,136.0,0.05346387]
[1741517983073,39.909,136.02,136.0,0.05346387]
[1741517983263,32.5555,136.02,135.94,28.6]
[1741517983470,32.5555,136.02,135.91,58.21149513]
[1741517983471,32.5555,136.02,135.92,28.6]
[1741517983773,7.3545,136.0,135.96,7.3559]
[1741517984370,7.3545,136.0,135.97,7.3558]
[1741517984674,0.05009426,135.99,135.97,7.40603121]
[1741517988073,0.05009426,135.99,135.98,7.3553]
[1741517989080,0.05009426,135.99,135.97,0.05023121]
[1741517989081,0.05009426,135.99,135.97,7.40563121]
[1741517989275,0.05009426,135.99,135.97,0.05023121]
[1741517989477,0.05009426,135.99,135.98,7.3553]
[1741517989672,0.05009426,135.99,135.97,0.05023121]
[1741517990073,0.05009426,135.99,135.97,7.40583121]
[1741517990573,0.05009426,135.99,135.97,0.05023121]
[1741517991172,0.05009426,135.99,135.97,7.40583121]
[1741517992173,0.05009426,135.99,135.98,7.3553]
[1741518000379,9.426e-05,135.99,135.98,7.3553]
[1741518002082,9.426e-05,135.99,135.97,0.05023121]
[1741518002284,7.35519426,135.99,135.97,0.05023121]
[1741518002783,9.426e-05,135.99,135.97,0.05023121]
[1741518002981,7.3553,135.98,135.97,0.05023121]
[1741518003485,9.426e-05,135.99,135.92,40.40079513]
[1741518003486,7.3563,135.97,135.93,7.3577]
[1741518003880,9.426e-05,135.99,135.92,40.40079513]
[1741518004279,28.6,136.0,135.92,40.40079513]
[1741518004480,6.906e-05,135.97,135.94,0.04977917]
[1741518004683,28.6,136.04,135.93,30.5073]
[1741518004884,28.6,136.04,135.94,2.0184]
[1741518005279,7.3526,136.03,135.94,2.0184]
[1741518005481,28.6,136.04,135.94,2.0184]
[1741518005685,0.05465972,136.0,135.97,0.05274932]
[1741518005888,0.05465972,136.0,135.99,7.3548]
[1741518006586,0.05465972,136.0,135.98,7.3551]
[1741518007082,0.05465972,136.0,135.97,7.40814932]
[1741518007385,0.05465972,136.0,135.97,0.05274932]
[1741518007587,0.05465972,136.0,135.97,28.65274932]
[1741518007787,0.05465972,136.0,135.99,7.3548]
[1741518009891,0.05465972,136.0,135.98,7.3551]
[1741518010092,0.05465972,136.0,135.97,0.05274932]
[1741518010479,28.6,135.99,135.97,0.05274932]
[1741518010685,35.9552,135.99,135.97,0.05274932]
[1741518010985,7.3552,135.99,135.97,0.05274932]
[1741518011190,28.6,135.99,135.97,0.05274932]
[1741518011690,35.9552,135.99,135.97,0.05274932]
[1741518012078,28.6,135.99,135.97,0.05274932]
[1741518012279,7.3553,135.98,135.97,0.05274932]
[1741518013390,0.05465972,136.0,135.97,0.05274932]
[1741518013781,0.05465972,136.0,135.98,7.3553]
[1741518013986,0.05465972,136.0,135.97,0.05274932]
[1741518014187,0.05465972,136.0,135.99,7.3548]
[1741518021183,0.05465972,136.0,135.98,7.355]
[1741518022591,0.05465972,136.0,135.97,0.05274932]
[1741518022995,28.63465972,136.0,135.97,0.05274932]
[1741518023393,7.3548,135.99,135.97,0.05274932]
[1741518024086,28.63465972,136.0,135.97,0.05274932]
[1741518024294,35.98915972,136.0,135.97,0.05274932]
[1741518024491,28.63465972,136.0,135.92,68.98079513]
[1741518024687,3.9336,135.99,135.92,68.98079513]
[1741518025296,7.3562,135.97,135.94,7.3571]
[1741518025596,3.9336,135.99,135.92,40.40079513]
[1741518025796,0.04745721,135.97,135.94,0.0480586]
[1741518025991,28.58,135.96,135.94,0.0480586]
[1741518026593,7.3569,135.95,135.94,0.0480586]
[1741518027905,28.58,135.96,135.94,0.0480586]
[1741518028103,0.04745721,135.97,135.94,0.0480586]
[1741518028298,0.04745721,135.97,135.96,7.3564]
[1741518028499,7.3523,136.04,135.95,28.58]
[1741518029009,7.3523,136.04,136.0,7.3539]
[1741518029509,7.3526,136.03,136.0,7.3539]
[1741518029717,7.40319304,136.03,136.01,0.04675022]
[1741518035614,0.05059304,136.03,136.01,0.04675022]
[1741518035821,0.05059304,136.03,136.02,7.3531]
[1741518037013,17.0868588,136.13,136.01,0.04675022]
[1741518037216,17.0868588,136.13,136.0,7.40578832]
[1741518037421,5.9816,136.16,136.01,1.35048832]
[1741518038118,34.5616,136.16,136.07,0.05522397]
[1741518038325,34.5616,136.16,136.08,28.58]
[1741518038523,0.05044122,136.13,136.1,0.05382153]
[1741518040222,0.05044122,136.13,136.1,28.61382153]
[1741518041519,34.4302,136.2,136.1,28.61382153]
[1741518041721,29.83694816,136.25,136.1,28.61382153]
[1741518041917,35.83174816,136.25,136.1,28.56]
[1741518042629,35.83174816,136.25,136.16,0.04760969]
[1741518042630,0.04936096,136.19,136.16,0.04760969]
[1741518042923,31.88814816,136.25,136.17,28.56]
[1741518043325,2.0512,136.25,136.17,28.56]
[1741518043920,28.56,136.28,136.17,28.56]
[1741518044122,28.56,136.28,136.2,0.05059118]
[1741518044123,0.04713066,136.22,136.2,0.05059118]
[1741518044318,0.04713066,136.22,136.21,28.56]
[1741518044523,28.56,136.28,136.21,28.56]
[1741518044820,0.04965845,136.23,136.21,28.56]
[1741518045024,28.56,136.28,136.23,0.04985531]
[1741518045323,0.05053374,136.26,136.23,0.04985531]
[1741518053822,2.0589,136.32,136.23,2.03055531]
[1741518054022,2.0589,136.32,136.23,3.9347]
[1741518054829,1.9245,136.33,136.23,3.9347]
[1741518055029,0.05271354,136.29,136.26,0.05282104]
[1741518055226,0.05271354,136.29,136.27,28.52]
[1741518058339,2.0425,136.36,136.27,28.52]
[1741518058830,32.4691,136.37,136.27,28.52]
[1741518059032,32.4691,136.37,136.28,1.919]
[1741518059336,28.5,136.41,136.28,1.919]
[1741518059533,0.04629124,136.34,136.31,0.05167202]
[1741518059731,30.4867,136.42,136.32,28.5]
[1741518059927,0.05287903,136.34,136.32,28.5]
[1741518060137,30.4867,136.42,136.32,28.5]
[1741518060337,0.05445204,136.34,136.32,28.5476104]
[1741518060538,30.4867,136.42,136.32,28.5]
[1741518060737,30.4867,136.42,136.29,242.2]
[1741518061038,30.4867,136.42,136.28,1.919]
[1741518061039,0.05499097,136.38,136.36,0.04632353]
[1741518061229,28.5,136.37,136.28,30.419]
[1741518061436,30.4012,136.37,136.28,30.419]
[1741518062235,30.4012,136.37,136.28,28.5]
[1741518062438,0.0509629,136.34,136.31,0.05407657]
[1741518066542,28.48,136.33,136.23,244.1858]
[1741518066742,28.48,136.33,136.24,28.48]
[1741518067738,0.04699427,136.3,136.27,0.05285939]
[1741518070241,0.04699427,136.3,136.27,28.53285939]
[1741518071739,0.04699427,136.3,136.27,0.05285939]
[1741518077039,0.04699427,136.3,136.22,28.48]
[1741518077342,2.01239427,136.3,136.22,28.48]
[1741518078136,2.01239427,136.3,136.25,0.05374365]
[1741518078137,0.04699427,136.3,136.25,0.05374365]
[1741518078338,0.04699427,136.3,136.26,28.48]
[1741518080843,0.04699427,136.3,136.25,0.05374365]
[1741518082143,2.03419427,136.3,136.25,0.05374365]
[1741518084145,3.993,136.29,136.25,0.05374365]
[1741518084449,3.993,136.29,136.19,102.40079513]
[1741518085444,0.0492148,136.25,136.23,0.05178902]
[1741518085950,0.0492148,136.25,136.19,40.40079513]
[1741518086852,0.0492148,136.25,136.21,0.05435759]
[1741518088556,0.0492148,136.25,136.22,28.48]
[1741518088757,0.0492148,136.25,136.23,62.0]
[1741518088950,0.0492148,136.25,136.22,28.48]
[1741518091459,0.0492148,136.25,136.21,0.05435759]
[1741518108258,28.5292148,136.25,136.21,0.05435759]
[1741518108463,1.9956,136.24,136.21,0.05435759]
[1741518109864,1.9956,136.24,136.16,40.40079513]
[1741518110754,1.9956,136.24,136.15,68.88079513]
[1741518111059,0.05530775,136.21,136.19,0.0484642]
[1741518117574,28.53530775,136.21,136.19,0.0484642]
[1741518120165,32.21530775,136.21,136.08,40.40079513]
[1741518120361,4.0223,136.2,136.09,62.0]
[1741518120563,246.3023,136.2,136.08,10.17048872]
[1741518120768,439.3023,136.2,136.08,10.17048872]
[1741518121168,0.04750074,136.15,136.13,0.05627856]
[1741518121373,28.48,136.14,136.08,10.17048872]
[1741518121579,1.8926,136.13,136.08,10.17048872]
[1741518122577,0.04647279,136.12,136.09,0.05241602]
[1741518127184,28.48,136.22,136.09,3.73241602]
[1741518127483,28.48,136.23,136.08,248.3155]
[1741518128185,0.0543981,136.17,136.14,0.05390607]
[1741518128377,28.48,136.23,136.11,28.48]
[1741518128682,0.05483064,136.17,136.14,0.04776089]
[1741518130083,0.05483064,136.17,136.08,32.5443]
[1741518130285,5.9852,136.18,136.08,32.5443]
[1741518131083,0.05270718,136.14,136.12,0.04815898]
[1741518132683,0.05270718,136.14,136.05,30.3966]
[1741518132985,28.48,136.15,136.06,62.0]
[1741518133685,0.05500258,136.12,136.09,0.04388313]
[1741518141091,0.05500258,136.12,136.1,62.0]
[1741518141593,0.05500258,136.12,136.09,0.04388313]
[1741518142991,28.53500258,136.12,136.09,0.04388313]
[1741518145496,1.9723,136.11,136.09,0.04388313]
[1741518146387,5.9112,136.11,136.0,2.0759]
[1741518146594,5.9112,136.11,135.99,40.40079513]
[1741518146994,28.48,136.1,135.99,40.40079513]
[1741518147290,28.48,136.1,135.99,68.88079513]
[1741518147488,0.05163002,136.06,135.99,68.88079513]
[1741518147892,0.05163002,136.06,135.99,28.48]
[1741518148388,0.05163002,136.06,136.0,62.0]
[1741518150095,28.48,136.13,136.01,1.35045686]
[1741518150591,28.48,136.13,136.02,2.0677]
[1741518150794,28.48,136.13,136.03,28.48]
[1741518151298,0.04998403,136.09,136.07,0.05163002]
[1741518155104,4.0884,136.15,136.07,28.53163002]
[1741518155297,28.48,136.17,136.07,28.53163002]
[1741518155497,28.48,136.17,136.07,28.48]
[1741518156294,0.04652643,136.13,136.11,0.05122288]
[1741518157902,30.3638,136.19,136.11,0.05122288]
[1741518158408,28.48,136.2,136.11,2.03752288]
[1741518158608,28.48,136.22,136.11,1.9863]
[1741518159104,0.05230988,136.18,136.15,0.05158704]
[1741518161405,28.53230988,136.18,136.15,0.05158704]
[1741518161810,1.8876,136.17,136.08,68.88079513]
[1741518162103,3.764,136.17,136.08,68.88079513]
[1741518162905,0.04642423,136.14,136.11,0.05432346]
[1741518164312,0.04642423,136.14,136.12,62.0]
[1741518166511,0.04642423,136.14,136.11,0.05432346]
[1741518170618,28.50642423,136.14,136.11,0.05432346]
[1741518172421,28.50642423,136.14,136.05,28.46]
[1741518172617,28.46,136.14,136.04,10.17048872]
[1741518172817,28.46,136.14,136.04,38.63048872]
[1741518173623,0.04763719,136.1,136.08,0.04222998]
[1741518175325,32.244,136.17,136.08,28.52222998]
[1741518175526,32.244,136.17,136.08,28.48]
[1741518176217,30.4236,136.2,136.08,28.48]
[1741518176421,30.4236,136.2,136.09,3.7702]
[1741518176723,0.05199377,136.15,136.13,0.04913503]
[1741518176914,30.4236,136.2,136.13,0.04913503]
[1741518177116,0.05621097,136.15,136.13,0.04913503]
[1741518177317,30.4236,136.2,136.13,0.04913503]
[1741518177513,0.04980785,136.15,136.13,0.04913503]
[1741518177731,32.3349,136.2,136.13,0.04913503]
[1741518177920,0.05604151,136.15,136.13,0.04913503]
[1741518178127,32.3349,136.2,136.13,0.04913503]
[1741518178327,0.04875314,136.15,136.13,0.04913503]
[1741518178622,0.05518242,136.15,136.13,0.04913503]
[1741518180923,1.9364,136.25,136.13,0.04913503]
[1741518181123,30.3964,136.24,136.12,28.46]
[1741518181429,30.3964,136.24,136.14,62.0]
[1741518182018,1.9364,136.25,136.14,62.0]
[1741518182225,0.04858427,136.2,136.18,0.04847668]
[1741518182426,5.8718,136.28,136.19,28.46]
[1741518182623,5.8718,136.28,136.2,1.9129]
[1741518183626,0.05077058,136.25,136.23,0.05330176]
[1741518186720,0.05077058,136.25,136.23,28.51330176]
[1741518188827,1.9025,136.32,136.23,28.51330176]
[1741518189229,1.9025,136.32,136.23,28.46]
[1741518190032,0.05326608,136.29,136.26,0.04776041]
[1741518191937,0.05326608,136.29,136.27,28.44]
[1741518194136,0.05326608,136.29,136.27,30.3542]
[1741518194629,0.05326608,136.29,136.27,28.44]
[1741518198140,0.05326608,136.29,136.28,28.44]
[1741518198542,0.05326608,136.29,136.26,0.04776041]
[1741518198840,0.05326608,136.29,136.27,28.44]
[1741518201538,0.05326608,136.29,136.26,0.04776041]
[1741518201738,0.05326608,136.29,136.26,28.46776041]
[1741518205948,43.77,136.32,136.26,28.46776041]
[1741518206150,43.77,136.32,136.27,3.9521]
[1741518207236,0.04686378,136.31,136.27,3.9521]
[1741518213353,34.3199,136.32,136.28,1.34774545]
[1741518213554,33.0943,136.32,136.28,1.34774545]
[1741518213947,33.0943,136.32,136.29,1.34773526]
[1741518214254,33.0943,136.32,136.27,3.9521]
[1741518214451,33.14546032,136.32,136.29,0.05112607]
[1741518216454,33.14546032,136.32,136.3,62.0]
[1741518219951,0.14546032,136.32,136.3,62.0]
[1741518220859,0.14546032,136.32,136.31,28.4]
[1741518230370,0.05116032,136.32,136.31,28.4]
[1741518245380,0.05116032,136.32,136.31,34.12942969]
[1741518247477,17.04532787,136.47,136.31,1829.44372662]
[1741518247678,78.6757377,136.52,136.33,51.448]
[1741518247879,28.56168569,136.5,136.41,7.358]
[1741518248083,199.28699097,136.53,136.46,44.09]
[1741518248285,199.28699097,136.53,136.47,28.4]
[1741518248475,199.28699097,136.53,136.48,28.4]
[1741518248681,0.05343246,136.51,136.49,0.05082867]
[1741518248883,0.05343246,136.51,136.45,241.98]
[1741518249084,203.40969097,136.53,136.44,28.4]
[1741518249285,201.33749097,136.53,136.44,50.44]
[1741518249485,199.28699097,136.53,136.45,7.358]
[1741518249682,199.28699097,136.53,136.46,22.04]
[1741518249881,199.28699097,136.53,136.47,270.4]
[1741518250185,0.0525075,136.51,136.5,65.46563737]
[1741518250386,2.0722,136.57,136.5,127.46563737]
[1741518250585,0.04749372,136.52,136.51,28.42]
[1741518250779,2.0722,136.57,136.51,28.42]
[1741518250977,0.05115305,136.53,136.51,28.42]
[1741518252289,0.05115305,136.53,136.52,152.3569455]
[1741518254395,28.42,136.62,136.52,186.54746672]
[1741518255593,0.05326191,136.58,136.56,0.05324155]
[1741518257697,0.05326191,136.58,136.57,61.36303208]
[1741518257893,28.36,136.64,136.57,61.36303208]
[1741518258794,28.36,136.64,136.57,65.46563737]
[1741518258991,0.04657402,136.62,136.59,0.05426316]
[1741518259492,0.04657402,136.62,136.6,10.00275681]
[1741518259995,3.70657402,136.62,136.6,10.00275681]
[1741518260195,0.04657402,136.62,136.6,10.00275681]
[1741518260494,3.70657402,136.62,136.6,10.00275681]
[1741518260898,21.56408674,136.64,136.6,10.00275681]
[1741518261695,21.56408674,136.64,136.59,0.05426316]
[1741518261997,0.04795199,136.63,136.56,18.52851574]
[1741518263297,0.04795199,136.63,136.58,0.04669336]
[1741518263600,21.56408674,136.64,136.58,0.04669336]
[1741518263797,0.05595567,136.62,136.58,0.04669336]
[1741518267296,2.05775567,136.62,136.58,0.04669336]
[1741518267496,0.05595567,136.62,136.59,28.36]
[1741518268094,0.05595567,136.62,136.59,32.07622293]
[1741518268493,5.7716,136.69,136.59,32.07622293]
[1741518269402,5.7716,136.69,136.61,249.55024674]
[1741518269702,5.7716,136.69,136.63,0.05437622]
[1741518270902,0.05103365,136.67,136.63,0.05437622]
[1741518271098,0.05103365,136.67,136.66,9.98991295]
[1741518274203,0.05103365,136.67,136.63,0.05437622]
[1741518276907,28.34,136.66,136.63,0.05437622]
[1741518277109,28.34,136.66,136.6,300.09168275]
[1741518278205,28.34,136.66,136.62,0.05387902]
[1741518278408,28.34,136.66,136.6,300.09168275]
[1741518279505,28.34,136.66,136.62,0.04937593]
[1741518279700,28.34,136.66,136.6,300.09168275]
[1741518280308,0.05103365,136.67,136.6,300.09168275]
[1741518280508,28.39103365,136.67,136.6,300.09168275]
[1741518280907,28.39103365,136.67,136.62,0.05138732]
[1741518281302,0.05103365,136.67,136.62,28.39138732]
[1741518281504,1.891,136.73,136.63,241.6]
[1741518281706,1.891,136.73,136.64,62.0]
[1741518282611,0.05278667,136.7,136.67,0.04845471]
[1741518282812,28.34,136.77,136.68,28.34]
[1741518283011,0.05453474,136.7,136.68,28.34]
[1741518283211,28.34,136.77,136.68,28.34]
[1741518283414,0.05229265,136.7,136.68,28.39109872]
[1741518283615,28.34,136.79,136.71,0.05479077]
[1741518283810,0.0518159,136.76,136.68,28.34]
[1741518284010,0.0518159,136.76,136.74,0.05257586]
[1741518284210,0.0518159,136.76,136.68,28.34]
[1741518284416,0.0518159,136.76,136.74,0.05128214]
[1741518284618,0.0518159,136.76,136.72,28.34]
[1741518284816,1.9282,136.78,136.74,0.04690961]
[1741518285811,0.04775309,136.77,136.74,0.04690961]
[1741518286207,0.04775309,136.77,136.75,252.84098676]
[1741518286620,2.0714,136.81,136.75,252.84098676]
[1741518287611,0.05089416,136.79,136.75,252.84098676]
[1741518288112,0.05089416,136.79,136.76,265.88541587]
[1741518288317,2.0714,136.81,136.76,265.88541587]
[1741518288719,3.9754,136.82,136.76,265.88541587]
[1741518288917,5.9684,136.82,136.76,265.88541587]
[1741518289420,0.05286746,136.8,136.78,0.04915638]
[1741518289620,0.05286746,136.8,136.78,110.92479052]
[1741518291825,0.05286746,136.8,136.79,174.99694923]
[1741518292624,28.32,136.81,136.79,174.99694923]
[1741518292823,31.98,136.81,136.79,171.89084923]
[1741518293023,31.98,136.81,136.79,166.65684923]
[1741518293621,32.03486657,136.81,136.79,166.65684923]
[1741518294124,32.03486657,136.81,136.78,10.09929253]
[1741518294323,32.03486657,136.81,136.77,27.13220931]
[1741518294526,32.03486657,136.81,136.77,23.27670931]
[1741518295125,15.70526969,136.81,136.77,23.27670931]
[1741518295325,15.70526969,136.81,136.78,0.05199297]
[1741518296419,221.32,136.8,136.78,0.05199297]
[1741518296828,224.98,136.8,136.78,0.05199297]
[1741518299026,193.0,136.79,136.78,0.05199297]
[1741518299629,196.66,136.79,136.78,0.05199297]
[1741518300632,3.66,136.79,136.78,0.05199297]
[1741518301024,27.16209518,136.79,136.64,124.76433725]
[1741518301229,193.0,136.78,136.65,120.95523725]
[1741518302032,193.0,136.78,136.66,5.8130159]
[1741518302336,0.05376825,136.73,136.71,0.0546933]
[1741518302539,28.32,136.72,136.71,0.0546933]
[1741518306840,31.98,136.72,136.71,0.0546933]
[1741518323854,33.25386203,136.72,136.71,0.0546933]
[1741518324447,34.71670579,136.72,136.71,0.0546933]
[1741518325555,33.44284376,136.72,136.71,0.0546933]
[1741518326758,34.71675243,136.72,136.71,0.0546933]
[1741518328654,33.44284376,136.72,136.71,0.0546933]
[1741518329749,34.71670579,136.72,136.71,0.0546933]
[1741518333960,34.73670579,136.72,136.71,0.0546933]
[1741518334565,29.80284376,136.72,136.71,0.0546933]
[1741518334763,1.46284376,136.72,136.71,0.0546933]
[1741518334958,29.80284376,136.72,136.71,0.0546933]
[1741518335156,28.34,136.72,136.71,0.0546933]
[1741518335360,12.794,136.72,136.71,0.0546933]
[1741518335561,28.34,136.72,136.71,0.0546933]
[1741518341461,0.04656259,136.73,136.71,0.0546933]
[1741518341666,28.32,136.72,136.71,0.0546933]
[1741518342369,0.04656259,136.73,136.71,0.0546933]
[1741518342562,28.32,136.72,136.71,0.0546933]
[1741518343372,0.04656259,136.73,136.71,0.0546933]
[1741518343573,28.32,136.74,136.71,0.0546933]
[1741518343964,241.48,136.75,136.71,0.0546933]
[1741518344163,269.8,136.75,136.71,0.0546933]
[1741518344678,0.04653342,136.74,136.71,0.0546933]
[1741518345674,0.04653342,136.74,136.71,3.8229092]
[1741518346072,0.04653342,136.74,136.71,0.0546933]
[1741518346475,0.04653342,136.74,136.71,3.8229092]
[1741518346974,0.04653342,136.74,136.71,0.0546933]
[1741518348875,0.04653342,136.74,136.71,3.8229092]
[1741518349074,0.04653342,136.74,136.71,0.0546933]
[1741518349467,0.04653342,136.74,136.71,3.8229092]
[1741518350282,0.04653342,136.74,136.71,0.0546933]
[1741518351874,0.04653342,136.74,136.71,3.8229092]
[1741518352075,0.04653342,136.74,136.71,0.0546933]
[1741518352773,0.04653342,136.74,136.71,3.8229092]
[1741518355079,0.04653342,136.74,136.71,0.0546933]
[1741518358186,0.04653342,136.74,136.71,3.8229092]
[1741518360087,0.04653342,136.74,136.71,0.0546933]
[1741518362288,241.5,136.73,136.71,0.0546933]
[1741518362484,28.3,136.72,136.71,0.0546933]
[1741518366888,22.04,136.7,136.59,10.15329261]
[1741518367192,22.04,136.68,136.59,10.15329261]
[1741518367384,22.04,136.66,136.59,10.15329261]
[1741518367588,458.04359312,136.65,136.59,10.15329261]
[1741518367784,194.46370023,136.64,136.59,10.15329261]
[1741518367993,244.80380736,136.63,136.59,10.15329261]
[1741518368291,244.85480935,136.63,136.59,3.99044496]
[1741518368497,3.4681145,136.62,136.59,3.99044496]
[1741518368691,4.74267637,136.62,136.59,3.99044496]
[1741518369398,4.74267637,136.62,136.59,0.05586578]
[1741518369586,26.78267637,136.62,136.52,30.35723219]
[1741518369790,216.50402166,136.61,136.52,34.12544809]
[1741518369985,1.46412884,136.6,136.52,34.12544809]
[1741518370192,28.3,136.59,136.52,34.12544809]
[1741518370695,0.04691472,136.57,136.54,0.05062962]
[1741518372602,241.64691472,136.57,136.54,0.05062962]
[1741518373297,243.63341472,136.57,136.54,0.05062962]
[1741518373697,1.4645577,136.56,136.54,0.05062962]
[1741518373898,28.32,136.55,136.54,0.05062962]
[1741518376000,43.79,136.46,136.32,608.76964157]
[1741518376198,22.04,136.44,136.14,600.18336551]
[1741518376493,22.04,136.42,136.14,630.86336551]
[1741518376688,22.04,136.4,136.15,30.7]
[1741518376889,1.46638316,136.39,136.15,92.7]
[1741518377094,0.04827821,136.33,136.31,0.05293389]
[1741518377393,30.68,136.32,136.31,0.05293389]
[1741518378600,30.68,136.32,136.3,252.94644717]
[1741518378796,46.12141495,136.32,136.3,252.94644717]
[1741518379000,189.53162581,136.32,135.99,1450.44]
[1741518379202,16.90865873,136.31,136.12,241.9]
[1741518379396,1.46735143,136.3,136.13,241.9]
[1741518379798,0.05129108,136.23,136.2,0.05075171]
[1741518379995,30.73129108,136.23,136.13,241.9]
[1741518380201,30.68,136.23,136.2,0.05464975]
[1741518380397,30.66,136.26,136.15,30.66]
[1741518380698,30.66,136.26,136.17,0.05408064]
[1741518380899,0.04772663,136.22,136.17,0.05408064]
[1741518381098,0.04772663,136.22,136.2,0.05169963]
[1741518381299,30.66,136.26,136.16,5.9229]
[1741518381897,143.41021086,136.21,136.16,5.9229]
[1741518382398,0.04919256,136.2,136.17,0.055068]
[1741518382607,0.04919256,136.2,136.17,3.735068]
[1741518383403,143.45940342,136.2,136.16,3.68]
[1741518384103,172.00772612,136.19,136.16,3.68]
[1741518384406,172.00772612,136.19,136.15,3.68]
[1741518384599,172.00772612,136.19,136.16,0.05276088]
[1741518385100,143.41021086,136.18,136.16,3.68]
[1741518386301,143.41021086,136.18,136.16,3.50875713]
[1741518386501,143.41021086,136.18,136.16,3.39709138]
[1741518386898,143.41021086,136.17,136.16,3.39709138]
[1741518387299,140.29241086,136.17,136.16,30.58]
[1741518387506,140.29241086,136.17,136.16,34.26]
[1741518388107,165.77202612,136.17,136.16,34.26]
[1741518388505,93.06402612,136.17,136.16,34.26]
[1741518388804,1.46735143,136.3,136.16,27.57089351]
[1741518389008,30.56,136.3,136.16,23.89089351]
[1741518389607,947.48529813,136.18,136.16,23.89089351]
[1741518390003,903.48004602,136.18,136.16,27.61887327]
[1741518390408,896.14004602,136.18,136.16,27.61887327]
[1741518390698,888.80004602,136.18,136.16,27.61887327]
[1741518391105,0.05474789,136.18,136.16,27.61887327]
[1741518392000,0.05474789,136.18,136.17,62.0]
[1741518392199,0.05474789,136.18,136.17,65.68]
[1741518392805,0.05474789,136.18,136.17,62.0]
[1741518393002,0.05474789,136.18,136.17,92.44]
[1741518393612,0.05474789,136.18,136.17,62.0]
[1741518393809,0.05474789,136.18,136.17,30.42]
[1741518394209,0.05474789,136.18,136.17,30.4]
[1741518395110,14.68,136.22,136.17,30.4]
[1741518395511,14.68,136.21,136.17,30.4]
[1741518395911,289.57177723,136.24,136.17,30.4]
[1741518396212,0.05459974,136.2,136.18,0.05643211]
[1741518401112,0.05459974,136.2,136.19,62.0]
[1741518401317,0.05459974,136.2,136.18,0.05643211]
[1741518403015,30.28,136.29,136.18,0.05643211]
[1741518403016,193.0,136.48,136.21,216.04]
[1741518403212,14.68,136.32,136.22,242.22]
[1741518403516,14.68,136.31,136.23,30.4]
[1741518404115,14.68,136.3,136.23,30.4]
[1741518404310,0.05531563,136.28,136.26,0.04665568]
[1741518404618,0.05531563,136.28,136.26,0.04917409]
[1741518404619,14.68,136.28,136.26,0.04917409]
[1741518404911,0.05399653,136.28,136.26,0.04917409]
[1741518405912,0.05399653,136.28,136.26,3.70917409]
[1741518406119,0.05399653,136.28,136.26,0.04917409]
[1741518406311,99.55885963,136.4,136.26,3.70917409]
[1741518406624,99.55885963,136.4,136.26,194.0]
[1741518406625,14.68,136.34,136.26,194.0]
[1741518407111,30.38,136.4,136.26,194.0]
[1741518407313,14.68,136.34,136.26,194.0]
[1741518407514,14.7325309,136.34,136.32,0.05106257]
[1741518407709,0.0525309,136.34,136.32,242.18]
[1741518407910,0.0525309,136.34,136.32,242.23601646]
[1741518409129,14.68,136.33,136.32,242.23601646]
[1741518410409,20.60562032,136.33,136.32,242.23601646]
[1741518410612,165.00927709,136.33,136.26,242.14]
[1741518410812,14.68,136.28,136.26,242.14]